[Event "Live Chess"]
[Site "Chess.com"]
[Date "2023.05.20"]
[Round "-"]
[White "jennybobby44"]
[Black "WilliamofOrange16th"]
[Result "1-0"]
[WhiteElo "1886"]
[BlackElo "1872"]
[TimeControl "300"]
[EndTime "11:55:17 PDT"]
[Termination "jennybobby44 won by resignation"]

1. Nf3 {[%clk 0:04:59.2]} 1... d6 {[%clk 0:04:58.6]} 2. g3 {[%clk 0:04:58.2]}
2... Nf6 {[%clk 0:04:57.6]} 3. Bg2 {[%clk 0:04:58]} 3... e5 {[%clk 0:04:56.4]}
4. d3 {[%clk 0:04:57.4]} 4... Be7 {[%clk 0:04:54.9]} 5. O-O {[%clk 0:04:57]}
5... O-O {[%clk 0:04:54.5]} 6. e4 {[%clk 0:04:56]} 6... c6 {[%clk 0:04:53.8]} 7.
b3 {[%clk 0:04:55.1]} 7... Nbd7 {[%clk 0:04:52.7]} 8. Bb2 {[%clk 0:04:54.7]}
8... Qc7 {[%clk 0:04:52.3]} 9. Nbd2 {[%clk 0:04:53.9]} 9... d5 {[%clk
0:04:51.4]} 10. exd5 {[%clk 0:04:52.8]} 10... cxd5 {[%clk 0:04:51.3]} 11. Re1
{[%clk 0:04:51.3]} 11... Bd6 {[%clk 0:04:50.2]} 12. h3 {[%clk 0:04:48]} 12...
Re8 {[%clk 0:04:48.3]} 13. Rc1 {[%clk 0:04:39.4]} 13... b6 {[%clk 0:04:21]} 14.
c4 {[%clk 0:04:38.2]} 14... d4 {[%clk 0:04:18.5]} 15. Nxd4 {[%clk 0:04:27.4]}
15... Rb8 {[%clk 0:04:11.1]} 16. Nb5 {[%clk 0:04:24.6]} 16... Qc5 {[%clk
0:04:07.6]} 17. Ba3 {[%clk 0:04:19.8]} 1-0

[Event "Live Chess"]
[Site "Chess.com"]
[Date "2023.05.20"]
[Round "-"]
[White "Bob2pen"]
[Black "OSmith06"]
[Result "1-0"]
[WhiteElo "1833"]
[BlackElo "1689"]
[TimeControl "300"]
[EndTime "11:55:17 PDT"]
[Termination "Bob2pen won by resignation"]

1. c4 {[%clk 0:04:58.1]} 1... Nf6 {[%clk 0:04:58.8]} 2. g3 {[%clk 0:04:56.8]}
2... e6 {[%clk 0:04:58.3]} 3. Bg2 {[%clk 0:04:56.1]} 3... d5 {[%clk 0:04:58.1]}
4. Nf3 {[%clk 0:04:54.2]} 4... c5 {[%clk 0:04:57.5]} 5. O-O {[%clk 0:04:52.8]}
5... b6 {[%clk 0:04:56.7]} 6. b3 {[%clk 0:04:49.5]} 6... Bb7 {[%clk 0:04:56.1]}
7. Bb2 {[%clk 0:04:48.1]} 7... Be7 {[%clk 0:04:55.3]} 8. d3 {[%clk 0:04:47.1]}
8... d4 {[%clk 0:04:53.7]} 9. e3 {[%clk 0:04:46.2]} 9... dxe3 {[%clk 0:04:49.5]}
10. fxe3 {[%clk 0:04:44.2]} 10... O-O {[%clk 0:04:48.6]} 11. d4 {[%clk
0:04:40.9]} 11... Na6 {[%clk 0:04:40.5]} 12. Nc3 {[%clk 0:04:37]} 12... Rc8
{[%clk 0:04:34.4]} 13. Qe2 {[%clk 0:04:35]} 13... Nc7 {[%clk 0:04:31]} 14. Rad1
{[%clk 0:04:31.3]} 14... Qd7 {[%clk 0:04:28.4]} 15. dxc5 {[%clk 0:04:26.6]}
15... Bxc5 {[%clk 0:04:21.7]} 16. Rxd7 {[%clk 0:04:24.1]} 1-0

[Event "Live Chess"]
[Site "Chess.com"]
[Date "2023.05.20"]
[Round "-"]
[White "WelshTiger"]
[Black "JoshMcK"]
[Result "0-1"]
[WhiteElo "2396"]
[BlackElo "1553"]
[TimeControl "300"]
[EndTime "11:55:18 PDT"]
[Termination "JoshMcK won by checkmate"]

1. e4 {[%clk 0:04:57.5]} 1... c6 {[%clk 0:04:58.1]} 2. d4 {[%clk 0:04:56.5]}
2... d5 {[%clk 0:04:57.2]} 3. Nd2 {[%clk 0:04:55.6]} 3... dxe4 {[%clk
0:04:54.6]} 4. Nxe4 {[%clk 0:04:55.5]} 4... Nf6 {[%clk 0:04:54]} 5. Nxf6+ {[%clk
0:04:54.2]} 5... exf6 {[%clk 0:04:53.9]} 6. c3 {[%clk 0:04:52]} 6... Bd6 {[%clk
0:04:52.7]} 7. Bd3 {[%clk 0:04:49.4]} 7... O-O {[%clk 0:04:49.6]} 8. Qc2 {[%clk
0:04:49]} 8... Re8+ {[%clk 0:04:48.7]} 9. Ne2 {[%clk 0:04:48.9]} 9... h5 {[%clk
0:04:47.9]} 10. h3 {[%clk 0:04:47.9]} 10... Nd7 {[%clk 0:04:43.5]} 11. O-O
{[%clk 0:04:47.1]} 11... Nf8 {[%clk 0:04:42.1]} 12. Be3 {[%clk 0:04:44.9]} 12...
Be6 {[%clk 0:04:30.9]} 13. c4 {[%clk 0:04:42.8]} 13... g6 {[%clk 0:04:28.4]} 14.
Nc3 {[%clk 0:04:41.3]} 14... f5 {[%clk 0:04:26.2]} 15. d5 {[%clk 0:04:38.6]}
15... cxd5 {[%clk 0:04:23.5]} 16. cxd5 {[%clk 0:04:38.5]} 16... Bd7 {[%clk
0:04:22.6]} 17. Bd4 {[%clk 0:04:23.1]} 17... Nh7 {[%clk 0:04:18.9]} 18. Nb5
{[%clk 0:04:17.3]} 18... Bf8 {[%clk 0:04:01.2]} 19. Rac1 {[%clk 0:03:59]} 19...
Rc8 {[%clk 0:03:51.8]} 20. Qb3 {[%clk 0:03:57.9]} 20... Bxb5 {[%clk 0:03:43.9]}
21. Bxb5 {[%clk 0:03:56]} 21... Rxc1 {[%clk 0:03:38.5]} 22. Rxc1 {[%clk
0:03:55.9]} 22... Re4 {[%clk 0:03:35.8]} 23. Bxa7 {[%clk 0:03:53]} 23... Rb4
{[%clk 0:03:27.5]} 24. Qd3 {[%clk 0:03:52.2]} 24... Qa5 {[%clk 0:03:20.8]} 25.
a4 {[%clk 0:03:38.8]} 25... Qxa7 {[%clk 0:03:13.5]} 26. d6 {[%clk 0:03:37.2]}
26... Rd4 {[%clk 0:03:03.6]} 27. Qe3 {[%clk 0:03:32.1]} 27... Qb6 {[%clk
0:02:51.6]} 28. d7 {[%clk 0:03:29.9]} 28... Qd6 {[%clk 0:02:44]} 29. g3 {[%clk
0:03:11.3]} 29... Nf6 {[%clk 0:02:34.6]} 30. Rc8 {[%clk 0:02:59.7]} 30... Rd1+
{[%clk 0:02:23.8]} 31. Kg2 {[%clk 0:02:45.4]} 31... Qd5+ {[%clk 0:02:16.8]} 32.
Qf3 {[%clk 0:02:43.7]} 32... Qxf3+ {[%clk 0:02:13]} 33. Kxf3 {[%clk 0:02:42.9]}
33... Nxd7 {[%clk 0:02:12.5]} 34. Rd8 {[%clk 0:02:42]} 34... Ne5+ {[%clk
0:02:06.3]} 35. Kf4 {[%clk 0:02:41.5]} 35... Rxd8 {[%clk 0:02:01.5]} 36. Kxe5
{[%clk 0:02:35.9]} 36... Bg7+ {[%clk 0:01:59.6]} 37. Kf4 {[%clk 0:02:35.3]}
37... Bxb2 {[%clk 0:01:58]} 38. Kf3 {[%clk 0:02:34.8]} 38... b6 {[%clk
0:01:48.9]} 39. Kg2 {[%clk 0:02:34.7]} 39... Bd4 {[%clk 0:01:47.2]} 40. h4
{[%clk 0:02:34.6]} 40... Bc5 {[%clk 0:01:45.9]} 41. Kf3 {[%clk 0:02:34.5]} 41...
Rd2 {[%clk 0:01:44.4]} 42. Kf4 {[%clk 0:02:34.4]} 42... Rxf2+ {[%clk 0:01:43]}
43. Kg5 {[%clk 0:02:34.3]} 43... Kg7 {[%clk 0:01:38.5]} 44. a5 {[%clk
0:02:30.4]} 44... f6# {[%clk 0:01:34.9]} 0-1

[Event "Live Chess"]
[Site "Chess.com"]
[Date "2023.05.20"]
[Round "-"]
[White "olahgito"]
[Black "Pablo_dmp"]
[Result "0-1"]
[WhiteElo "728"]
[BlackElo "1856"]
[TimeControl "300"]
[EndTime "11:55:18 PDT"]
[Termination "Pablo_dmp won by checkmate"]

1. e4 {[%clk 0:04:59.6]} 1... c5 {[%clk 0:04:58.9]} 2. Nf3 {[%clk 0:04:59]} 2...
Nc6 {[%clk 0:04:57.9]} 3. Bb5 {[%clk 0:04:58]} 3... g6 {[%clk 0:04:56.5]} 4.
Bxc6 {[%clk 0:04:54.4]} 4... dxc6 {[%clk 0:04:56.4]} 5. d4 {[%clk 0:04:52.9]}
5... Bg7 {[%clk 0:04:55.9]} 6. dxc5 {[%clk 0:04:51.1]} 6... Qa5+ {[%clk
0:04:51.4]} 7. Nc3 {[%clk 0:04:42.6]} 7... Qxc5 {[%clk 0:04:50.3]} 8. Be3 {[%clk
0:04:42]} 8... Qb4 {[%clk 0:04:47.1]} 9. Rb1 {[%clk 0:04:29.1]} 9... Bg4 {[%clk
0:04:43.5]} 10. a3 {[%clk 0:04:25.2]} 10... Bxc3+ {[%clk 0:04:40.8]} 11. bxc3
{[%clk 0:04:22.9]} 11... Qxc3+ {[%clk 0:04:40.7]} 12. Bd2 {[%clk 0:04:21.6]}
12... Qc4 {[%clk 0:04:27.4]} 13. Rb4 {[%clk 0:03:53.2]} 13... Qa6 {[%clk
0:04:18.1]} 14. Qe2 {[%clk 0:03:43.2]} 14... Qxe2+ {[%clk 0:04:13.1]} 15. Kxe2
{[%clk 0:03:43.1]} 15... Bxf3+ {[%clk 0:04:12.1]} 16. gxf3 {[%clk 0:03:39.4]}
16... b6 {[%clk 0:04:11.5]} 17. a4 {[%clk 0:03:36.9]} 17... Nf6 {[%clk
0:04:05.3]} 18. Rc4 {[%clk 0:03:30]} 18... c5 {[%clk 0:03:58.8]} 19. a5 {[%clk
0:03:28.3]} 19... Nd7 {[%clk 0:03:57.2]} 20. axb6 {[%clk 0:03:23.7]} 20... axb6
{[%clk 0:03:57.1]} 21. Rb1 {[%clk 0:03:14.7]} 21... O-O {[%clk 0:03:54.9]} 22.
Bh6 {[%clk 0:03:07.9]} 22... Rfb8 {[%clk 0:03:48.8]} 23. Ke3 {[%clk 0:03:03.1]}
23... b5 {[%clk 0:03:48]} 24. Rc3 {[%clk 0:02:58.3]} 24... b4 {[%clk 0:03:46.8]}
25. Rc4 {[%clk 0:02:55.7]} 25... Ra3+ {[%clk 0:03:44.9]} 26. Ke2 {[%clk
0:02:51.2]} 26... Ra2 {[%clk 0:03:43.6]} 27. Kd3 {[%clk 0:02:19.9]} 27... Ne5+
{[%clk 0:03:39.2]} 28. Kd2 {[%clk 0:02:16.8]} 28... Nxc4+ {[%clk 0:03:39.1]} 29.
Kd3 {[%clk 0:02:16]} 29... Na3 {[%clk 0:03:37.9]} 30. Rd1 {[%clk 0:02:08.7]}
30... Rxc2 {[%clk 0:03:35.8]} 31. Ke3 {[%clk 0:02:07.3]} 31... Rc3+ {[%clk
0:03:34.5]} 32. Ke2 {[%clk 0:02:04.2]} 32... b3 {[%clk 0:03:33.5]} 33. Kd2
{[%clk 0:02:01.7]} 33... Rc2+ {[%clk 0:03:32.4]} 34. Kd3 {[%clk 0:01:59.3]}
34... b2 {[%clk 0:03:32.3]} 35. Ke3 {[%clk 0:01:56]} 35... Rc1 {[%clk
0:03:30.5]} 36. Rd5 {[%clk 0:01:53.1]} 36... b1=Q {[%clk 0:03:29.3]} 37. Kf4
{[%clk 0:01:51.8]} 37... f5 {[%clk 0:03:26.2]} 38. exf5 {[%clk 0:01:48.5]} 38...
Qxf5+ {[%clk 0:03:25]} 39. Rxf5 {[%clk 0:01:47.5]} 39... gxf5 {[%clk 0:03:24.9]}
40. Kxf5 {[%clk 0:01:47.1]} 40... Rh1 {[%clk 0:03:23]} 41. f4 {[%clk 0:01:43.8]}
41... Rxh2 {[%clk 0:03:19.3]} 42. f3 {[%clk 0:01:41.7]} 42... Rxh6 {[%clk
0:03:18.1]} 43. Ke5 {[%clk 0:01:39.6]} 43... Rf6 {[%clk 0:03:18]} 44. f5 {[%clk
0:01:37.6]} 44... Kf7 {[%clk 0:03:17.9]} 45. f4 {[%clk 0:01:36.5]} 45... Rd8
{[%clk 0:03:17.8]} 46. Ke4 {[%clk 0:01:34.6]} 46... Rd4+ {[%clk 0:03:15.9]} 47.
Ke5 {[%clk 0:01:33]} 47... Nc4# {[%clk 0:03:13.9]} 0-1

[Event "Live Chess"]
[Site "Chess.com"]
[Date "2023.05.20"]
[Round "-"]
[White "CeladonFish"]
[Black "KeithArkell"]
[Result "0-1"]
[WhiteElo "1092"]
[BlackElo "2610"]
[TimeControl "300"]
[EndTime "11:55:25 PDT"]
[Termination "KeithArkell won by resignation"]

1. d4 {[%clk 0:04:59.7]} 1... e6 {[%clk 0:04:58.9]} 2. c4 {[%clk 0:04:59.1]}
2... Bb4+ {[%clk 0:04:57.6]} 3. Nc3 {[%clk 0:04:57.6]} 3... c5 {[%clk
0:04:55.9]} 4. dxc5 {[%clk 0:04:55.8]} 4... Bxc3+ {[%clk 0:04:54.2]} 5. bxc3
{[%clk 0:04:54.8]} 5... Qa5 {[%clk 0:04:53.4]} 6. Bd2 {[%clk 0:04:53.8]} 6...
Nf6 {[%clk 0:04:52.2]} 7. Qc2 {[%clk 0:04:53]} 7... Na6 {[%clk 0:04:49.4]} 8.
Nf3 {[%clk 0:04:52.3]} 8... Nxc5 {[%clk 0:04:48.6]} 9. e4 {[%clk 0:04:51.5]}
9... Nfxe4 {[%clk 0:04:47.6]} 10. Bd3 {[%clk 0:04:50]} 10... Nxd2 {[%clk
0:04:46.7]} 11. Qxd2 {[%clk 0:04:49.5]} 11... Nxd3+ {[%clk 0:04:46.1]} 12. Qxd3
{[%clk 0:04:49]} 12... b6 {[%clk 0:04:45]} 13. O-O {[%clk 0:04:47.2]} 13... Bb7
{[%clk 0:04:44]} 14. Rfd1 {[%clk 0:04:45.8]} 14... Rd8 {[%clk 0:04:40.7]} 15.
Ne5 {[%clk 0:04:38.5]} 15... Qxe5 {[%clk 0:04:39.4]} 16. Re1 {[%clk 0:04:36.7]}
16... Qg5 {[%clk 0:04:37.5]} 17. g3 {[%clk 0:04:35.8]} 17... O-O {[%clk
0:04:35.5]} 18. f4 {[%clk 0:04:34.6]} 18... Qg4 {[%clk 0:04:34.4]} 19. Re5
{[%clk 0:04:30.5]} 19... Qf3 {[%clk 0:04:33.4]} 20. Qc2 {[%clk 0:04:19.7]} 20...
Qh1+ {[%clk 0:04:31.1]} 21. Kf2 {[%clk 0:04:18.7]} 21... Qg2+ {[%clk 0:04:30.5]}
22. Ke1 {[%clk 0:04:15.1]} 22... Qxc2 {[%clk 0:04:29.6]} 0-1

[Event "Live Chess"]
[Site "Chess.com"]
[Date "2023.05.20"]
[Round "-"]
[White "martynstanley"]
[Black "MaximKris"]
[Result "0-1"]
[WhiteElo "1005"]
[BlackElo "1880"]
[TimeControl "300"]
[EndTime "11:55:29 PDT"]
[Termination "MaximKris won by checkmate"]

1. d4 {[%clk 0:04:59.6]} 1... d5 {[%clk 0:04:58.8]} 2. e3 {[%clk 0:04:59]} 2...
Nf6 {[%clk 0:04:57.4]} 3. Bd3 {[%clk 0:04:58.3]} 3... Nc6 {[%clk 0:04:56.1]} 4.
c3 {[%clk 0:04:57.4]} 4... e6 {[%clk 0:04:55.1]} 5. f4 {[%clk 0:04:56.8]} 5...
Bd6 {[%clk 0:04:54.7]} 6. Nf3 {[%clk 0:04:55.8]} 6... O-O {[%clk 0:04:54.2]} 7.
O-O {[%clk 0:04:55.2]} 7... Ne7 {[%clk 0:04:53.5]} 8. Ne5 {[%clk 0:04:54.5]}
8... Nf5 {[%clk 0:04:52.7]} 9. Rf3 {[%clk 0:04:52.1]} 9... Bxe5 {[%clk
0:04:51.4]} 10. fxe5 {[%clk 0:04:51.3]} 10... Ne4 {[%clk 0:04:50.7]} 11. Nd2
{[%clk 0:04:50.2]} 11... Nxd2 {[%clk 0:04:49.8]} 12. Bxd2 {[%clk 0:04:49.5]}
12... Qg5 {[%clk 0:04:49.4]} 13. Rh3 {[%clk 0:04:47.1]} 13... h6 {[%clk
0:04:46.9]} 14. e4 {[%clk 0:04:46.4]} 14... dxe4 {[%clk 0:04:45.9]} 15. Bxg5
{[%clk 0:04:45.1]} 15... exd3 {[%clk 0:04:44.5]} 16. Qxd3 {[%clk 0:04:44.3]}
16... hxg5 {[%clk 0:04:43.3]} 17. Qf3 {[%clk 0:04:41.4]} 17... Nh6 {[%clk
0:04:41.9]} 18. Qh5 {[%clk 0:04:39.5]} 18... g4 {[%clk 0:04:40.8]} 19. Rg3
{[%clk 0:04:38.3]} 19... Bd7 {[%clk 0:04:40.1]} 20. Re1 {[%clk 0:04:36.6]} 20...
f6 {[%clk 0:04:39.1]} 21. Re4 {[%clk 0:04:34]} 21... f5 {[%clk 0:04:37.8]} 22.
Rf4 {[%clk 0:04:32]} 22... Be8 {[%clk 0:04:36]} 23. Qh4 {[%clk 0:04:29.2]} 23...
Rf7 {[%clk 0:04:31]} 24. Qg5 {[%clk 0:04:27.7]} 24... Kh7 {[%clk 0:04:29.6]} 25.
h4 {[%clk 0:04:25.5]} 25... c6 {[%clk 0:04:24.8]} 26. h5 {[%clk 0:04:24.7]}
26... Rc8 {[%clk 0:04:23.4]} 27. Qg6+ {[%clk 0:04:23.4]} 27... Kg8 {[%clk
0:04:19.6]} 28. Qxe6 {[%clk 0:04:20.5]} 28... Rc7 {[%clk 0:04:18.8]} 29. Rgxg4
{[%clk 0:04:15.7]} 29... Nxg4 {[%clk 0:04:16.2]} 30. Rxf5 {[%clk 0:04:13.8]}
30... Re7 {[%clk 0:04:11]} 31. Qg6 {[%clk 0:04:09.2]} 31... Nh6 {[%clk
0:04:05.7]} 32. Rxf7 {[%clk 0:04:03.5]} 32... Rxf7 {[%clk 0:04:05.6]} 33. Qg5
{[%clk 0:03:59.4]} 33... Nf5 {[%clk 0:04:00.7]} 34. Qd8 {[%clk 0:03:56.2]} 34...
Rf8 {[%clk 0:03:59.7]} 35. g4 {[%clk 0:03:51.9]} 35... Ne3 {[%clk 0:03:57.5]}
36. d5 {[%clk 0:03:46.5]} 36... cxd5 {[%clk 0:03:55.4]} 37. Qxd5+ {[%clk
0:03:45.2]} 37... Nxd5 {[%clk 0:03:54.2]} 38. c4 {[%clk 0:03:43.5]} 38... Nf4
{[%clk 0:03:52.6]} 39. Kh2 {[%clk 0:03:41]} 39... Bd7 {[%clk 0:03:52.2]} 40. Kg3
{[%clk 0:03:39.3]} 40... Be6 {[%clk 0:03:51.5]} 41. b3 {[%clk 0:03:38.6]} 41...
Nd3 {[%clk 0:03:49.6]} 42. Kh4 {[%clk 0:03:35.8]} 42... Nxe5 {[%clk 0:03:49.5]}
43. g5 {[%clk 0:03:34.5]} 43... Nxc4 {[%clk 0:03:48.9]} 44. bxc4 {[%clk
0:03:33.3]} 44... Bxc4 {[%clk 0:03:48.8]} 45. a3 {[%clk 0:03:32.6]} 45... Ba2
{[%clk 0:03:48.7]} 46. h6 {[%clk 0:03:31.8]} 46... a5 {[%clk 0:03:48.4]} 47. Kh5
{[%clk 0:03:30.8]} 47... Bf7+ {[%clk 0:03:45.9]} 48. g6 {[%clk 0:03:29.6]} 48...
gxh6 {[%clk 0:03:45.8]} 49. Kxh6 {[%clk 0:03:28.4]} 49... Bxg6 {[%clk
0:03:44.1]} 50. Kxg6 {[%clk 0:03:27.6]} 50... Rf3 {[%clk 0:03:44]} 51. a4 {[%clk
0:03:26.3]} 51... Ra3 {[%clk 0:03:43.9]} 52. Kf6 {[%clk 0:03:25.1]} 52... Rxa4
{[%clk 0:03:43.8]} 53. Ke6 {[%clk 0:03:24.4]} 53... b5 {[%clk 0:03:43.3]} 54.
Kd5 {[%clk 0:03:23.9]} 54... Rc4 {[%clk 0:03:42.7]} 55. Kd6 {[%clk 0:03:21.6]}
55... a4 {[%clk 0:03:42.6]} 56. Kd5 {[%clk 0:03:21]} 56... a3 {[%clk 0:03:42.5]}
57. Kd6 {[%clk 0:03:20.5]} 57... a2 {[%clk 0:03:42.4]} 58. Kd5 {[%clk
0:03:19.9]} 58... a1=Q {[%clk 0:03:42.3]} 59. Kd6 {[%clk 0:03:19.4]} 59... Qd4+
{[%clk 0:03:42.2]} 60. Ke6 {[%clk 0:03:18.6]} 60... Rc5 {[%clk 0:03:42.1]} 61.
Ke7 {[%clk 0:03:13.4]} 61... Re5+ {[%clk 0:03:40.3]} 62. Kf6 {[%clk 0:03:12.1]}
62... Qf4+ {[%clk 0:03:40.2]} 63. Kg6 {[%clk 0:03:10.3]} 63... Rg5+ {[%clk
0:03:40.1]} 64. Kh6 {[%clk 0:03:09.4]} 64... Qh4# {[%clk 0:03:40]} 0-1

[Event "Live Chess"]
[Site "Chess.com"]
[Date "2023.05.20"]
[Round "-"]
[White "LaupMiths"]
[Black "mattlirious"]
[Result "1-0"]
[WhiteElo "1822"]
[BlackElo "1309"]
[TimeControl "300"]
[EndTime "11:55:34 PDT"]
[Termination "LaupMiths won by resignation"]

1. d4 {[%clk 0:04:55.7]} 1... Nf6 {[%clk 0:04:56.4]} 2. Nf3 {[%clk 0:04:54.8]}
2... d5 {[%clk 0:04:49]} 3. g3 {[%clk 0:04:50.1]} 3... Bf5 {[%clk 0:04:47]} 4.
Bg2 {[%clk 0:04:49.7]} 4... c6 {[%clk 0:04:43.3]} 5. O-O {[%clk 0:04:48.9]} 5...
Na6 {[%clk 0:04:41.2]} 6. b3 {[%clk 0:04:48]} 6... Nc7 {[%clk 0:04:40]} 7. Bb2
{[%clk 0:04:45.7]} 7... e6 {[%clk 0:04:38.3]} 8. c4 {[%clk 0:04:44.3]} 8... Be7
{[%clk 0:04:28.7]} 9. Nc3 {[%clk 0:04:40.6]} 9... O-O {[%clk 0:04:25.7]} 10. Rc1
{[%clk 0:04:38.5]} 10... Qb8 {[%clk 0:04:23.1]} 11. Nh4 {[%clk 0:04:35.1]} 11...
Bd6 {[%clk 0:04:05.4]} 12. Nxf5 {[%clk 0:04:32.1]} 12... exf5 {[%clk 0:04:04.7]}
13. Qd3 {[%clk 0:04:23.6]} 13... g6 {[%clk 0:04:01.6]} 14. f3 {[%clk 0:04:16.6]}
14... Ne6 {[%clk 0:04:00.8]} 15. e4 {[%clk 0:04:14.4]} 15... dxe4 {[%clk
0:03:59.3]} 16. fxe4 {[%clk 0:04:13.5]} 16... fxe4 {[%clk 0:03:51.2]} 17. Nxe4
{[%clk 0:04:09.9]} 17... Nxe4 {[%clk 0:03:49.7]} 18. Bxe4 {[%clk 0:04:08]} 18...
Ng7 {[%clk 0:03:35.6]} 19. d5 {[%clk 0:04:05.2]} 19... Bc5+ {[%clk 0:03:29.4]}
20. Kh1 {[%clk 0:04:03.1]} 20... Rd8 {[%clk 0:03:28]} 21. Qc3 {[%clk 0:04:01.4]}
21... Bf8 {[%clk 0:03:14.3]} 22. dxc6 {[%clk 0:03:55.9]} 22... bxc6 {[%clk
0:03:11.8]} 23. Bxc6 {[%clk 0:03:54.7]} 23... Qd6 {[%clk 0:03:08.3]} 24. Bd5
{[%clk 0:03:50.9]} 24... Rac8 {[%clk 0:03:03.7]} 25. Qf3 {[%clk 0:03:40]} 25...
Qd7 {[%clk 0:02:47.7]} 26. Bxf7+ {[%clk 0:03:26.2]} 26... Kh8 {[%clk 0:02:42.8]}
27. Rcd1 {[%clk 0:03:21.7]} 27... Qc7 {[%clk 0:02:32.9]} 28. Bd5 {[%clk
0:03:12.2]} 28... Bc5 {[%clk 0:02:15.9]} 29. Qg4 {[%clk 0:02:55.7]} 29... Rf8
{[%clk 0:02:07]} 30. h4 {[%clk 0:02:52.7]} 30... Rxf1+ {[%clk 0:01:52.8]} 31.
Rxf1 {[%clk 0:02:49.8]} 31... Bd6 {[%clk 0:01:50.8]} 32. Rf3 {[%clk 0:02:44.4]}
32... Be5 {[%clk 0:01:48.9]} 33. Bxe5 {[%clk 0:02:39.2]} 33... Qxe5 {[%clk
0:01:48.1]} 34. Qxc8+ {[%clk 0:02:38.5]} 34... Ne8 {[%clk 0:01:44.2]} 35. Qe6
{[%clk 0:02:29.6]} 35... Qa1+ {[%clk 0:01:39.8]} 36. Kg2 {[%clk 0:02:26.5]}
36... Qb2+ {[%clk 0:01:32]} 37. Rf2 {[%clk 0:02:24.1]} 37... Qg7 {[%clk
0:01:29.7]} 38. Qxe8+ {[%clk 0:02:20.9]} 1-0

[Event "Live Chess"]
[Site "Chess.com"]
[Date "2023.05.20"]
[Round "-"]
[White "blunderabit"]
[Black "luckywookie"]
[Result "1-0"]
[WhiteElo "1897"]
[BlackElo "744"]
[TimeControl "300"]
[EndTime "11:55:47 PDT"]
[Termination "blunderabit won by resignation"]

1. e4 {[%clk 0:04:53.9]} 1... c6 {[%clk 0:04:58]} 2. Nf3 {[%clk 0:04:50.6]} 2...
d5 {[%clk 0:04:54.3]} 3. d3 {[%clk 0:04:49.3]} 3... e5 {[%clk 0:04:50.1]} 4.
Nbd2 {[%clk 0:04:27.9]} 4... Bg4 {[%clk 0:04:43.3]} 5. Be2 {[%clk 0:04:23.8]}
5... Nd7 {[%clk 0:04:40.6]} 6. O-O {[%clk 0:04:04.3]} 6... Bd6 {[%clk
0:04:25.4]} 7. h3 {[%clk 0:03:58.5]} 7... Bxf3 {[%clk 0:04:23.5]} 8. Bxf3 {[%clk
0:03:52.6]} 8... d4 {[%clk 0:04:16]} 9. Nc4 {[%clk 0:03:47.8]} 9... Bc5 {[%clk
0:04:03.2]} 10. Bd2 {[%clk 0:03:38.8]} 10... a5 {[%clk 0:03:58.5]} 11. a4 {[%clk
0:03:29.6]} 11... b5 {[%clk 0:03:56.3]} 12. axb5 {[%clk 0:03:27.3]} 12... cxb5
{[%clk 0:03:55.3]} 13. Nxa5 {[%clk 0:03:22.1]} 13... b4 {[%clk 0:03:31.4]} 14.
Nb3 {[%clk 0:03:16.7]} 14... Rxa1 {[%clk 0:03:28.9]} 15. Qxa1 {[%clk 0:03:14]}
15... Bd6 {[%clk 0:03:22.9]} 16. Qa4 {[%clk 0:03:08.1]} 16... Ne7 {[%clk
0:03:19.8]} 17. Bxb4 {[%clk 0:03:04.1]} 17... Bxb4 {[%clk 0:03:16.6]} 18. Qxb4
{[%clk 0:03:02.1]} 18... Nc6 {[%clk 0:03:13.2]} 19. Qd6 {[%clk 0:02:58.8]} 19...
Ne7 {[%clk 0:02:58.6]} 20. Bg4 {[%clk 0:02:52.2]} 20... f5 {[%clk 0:02:44.8]}
21. Bxf5 {[%clk 0:02:31.4]} 21... Nxf5 {[%clk 0:02:38]} 22. exf5 {[%clk
0:02:28.6]} 22... Qf6 {[%clk 0:02:29.8]} 23. Qxf6 {[%clk 0:02:22]} 23... gxf6
{[%clk 0:02:23.7]} 24. c4 {[%clk 0:02:10.2]} 24... dxc3 {[%clk 0:02:14.8]} 25.
bxc3 {[%clk 0:02:08.2]} 25... O-O {[%clk 0:02:10.7]} 26. c4 {[%clk 0:01:45.1]}
26... Rb8 {[%clk 0:02:02.4]} 27. Nc1 {[%clk 0:01:37.9]} 27... Rb1 {[%clk
0:01:58.2]} 28. Re1 {[%clk 0:01:30.9]} 28... Nc5 {[%clk 0:01:55.2]} 29. Kf1
{[%clk 0:01:28]} 29... Nxd3 {[%clk 0:01:52.8]} 30. Nxd3 {[%clk 0:01:25.7]} 30...
Rxe1+ {[%clk 0:01:50.3]} 31. Kxe1 {[%clk 0:01:23.5]} 31... e4 {[%clk 0:01:48.8]}
32. Nf4 {[%clk 0:01:21.5]} 32... Kf7 {[%clk 0:01:48.7]} 33. Kd2 {[%clk
0:01:19.3]} 33... Ke7 {[%clk 0:01:47.9]} 34. Ke3 {[%clk 0:01:18.1]} 34... Kd6
{[%clk 0:01:47.2]} 35. Kxe4 {[%clk 0:01:16.2]} 35... Kc5 {[%clk 0:01:46.3]} 36.
Kd3 {[%clk 0:01:14.7]} 36... h6 {[%clk 0:01:42.7]} 37. Nh5 {[%clk 0:01:12.7]}
37... Kb4 {[%clk 0:01:39.3]} 38. Nxf6 {[%clk 0:01:11.4]} 38... h5 {[%clk
0:01:36.6]} 39. Nxh5 {[%clk 0:01:09.6]} 39... Kc5 {[%clk 0:01:35.6]} 40. f6
{[%clk 0:01:08]} 1-0